bitfinex/quotes_SOLUSD_20241220
["timestamp","ask_amount","ask_price","bid_price","bid_amount"]
[1734701561586,40.67328901,186.01,185.9,40.67328901]
[1734701561786,40.67328901,185.99,185.89,0.37478206]
[1734701561984,40.67328901,185.91,185.82,62.21770701]
[1734701562191,40.67328901,185.85,185.77,0.3757824]
[1734701562505,40.67328901,185.85,185.67,40.67328901]
[1734701562506,41.68221782,185.93,185.83,40.67328901]
[1734701562705,40.67328901,185.91,185.83,0.37562752]
[1734701562881,40.67328901,185.85,185.77,0.37609337]
[1734701563083,13.4401,186.01,185.77,0.37609337]
[1734701563084,40.67328901,185.87,185.77,0.37609337]
[1734701563294,40.67328901,185.87,185.77,0.3761685]
[1734701563496,40.67328901,185.83,185.72,40.67328901]
[1734701563704,40.67328901,185.81,185.7,40.67328901]
[1734701564010,40.67328901,185.85,185.76,40.67328901]
[1734701564205,40.67328901,185.85,185.74,40.67328901]
[1734701564381,40.67328901,185.91,185.8,40.67328901]
[1734701564583,40.67328901,185.87,185.77,0.37663055]
[1734701564795,40.67328901,185.89,185.78,40.67328901]
[1734701564979,40.67328901,185.89,185.79,0.37607655]
[1734701565201,40.67328901,185.89,185.8,0.12549]
[1734701565387,40.67328901,185.85,185.74,40.67328901]
[1734701565588,1.00897533,185.84,185.71,0.61125881]
[1734701565792,40.67328901,185.82,185.71,0.61171779]
[1734701565994,40.67328901,185.82,185.72,40.67328901]
[1734701566202,40.67328901,185.82,185.73,0.3768376]
[1734701567289,40.67328901,185.84,185.74,40.67328901]
[1734701567502,41.682302,185.92,185.83,0.12549]
[1734701567710,40.67328901,185.92,185.82,41.04895716]
[1734701567914,40.67328901,185.94,185.84,40.67328901]
[1734701568106,40.67328901,185.9,185.83,20.0]
[1734701568307,40.67328901,185.96,185.89,20.0]
[1734701568621,40.67328901,185.98,185.9,0.37501779]
[1734701568917,40.67328901,186.0,185.92,20.0]
[1734701569083,40.67328901,186.04,185.96,20.0]
[1734701569295,40.67328901,186.08,186.0,20.0]
[1734701569596,40.67328901,186.16,186.05,40.67328901]
[1734701569783,40.67328901,186.18,186.09,40.67328901]
[1734701569988,48.43918183,186.3,186.16,20.0]
[1734701569989,40.67328901,186.24,186.16,20.0]
[1734701570516,40.67328901,186.24,186.07,0.12549]
[1734701570517,40.67328901,186.22,186.11,40.67328901]
[1734701570820,1.00705728,186.21,186.16,20.0]
[1734701570996,40.67328901,186.2,186.11,40.67328901]
[1734701571595,40.67328901,186.14,186.08,20.0]
[1734701571919,40.67328901,186.15,186.05,40.67328901]
[1734701572095,41.68071491,186.19,186.09,40.67328901]
[1734701572411,40.67328901,186.17,186.06,0.37351195]
[1734701572620,40.67328901,186.11,186.01,40.67328901]
[1734701572796,1.0075307,186.1,186.01,40.67328901]
[1734701572992,40.67328901,186.21,186.04,0.12549]
[1734701572993,40.67328901,186.13,186.04,0.12549]
[1734701573305,1.00763963,186.2,186.11,40.67328901]
[1734701573508,40.67328901,186.23,186.13,40.67328901]
[1734701573706,40.67328901,186.25,186.15,40.67328901]
[1734701574018,1.00684618,186.24,186.15,40.67328901]
[1734701574218,40.67328901,186.25,186.16,0.37223184]
[1734701574518,40.67328901,186.37,186.26,20.0]
[1734701574719,40.67328901,186.45,186.35,40.67328901]
[1734701574889,1.0058801,186.44,186.4,40.67328901]
[1734701575094,1.0058191,186.51,186.43,40.67328901]
[1734701575293,1.00555397,186.5,186.41,40.67328901]
[1734701575592,40.67328901,186.49,186.39,40.67328901]
[1734701575787,3.6491,186.65,186.39,40.67328901]
[1734701575788,40.67328901,186.55,186.45,40.67328901]
[1734701575993,40.67328901,186.57,186.47,40.67328901]
[1734701576291,1.00521359,186.56,186.44,0.12549]
[1734701576488,40.67328901,186.59,186.42,20.0]
[1734701576489,1.00522007,186.58,186.48,40.67328901]
[1734701576696,40.67328901,186.57,186.48,40.67328901]
[1734701577020,40.67328901,186.59,186.48,40.67328901]
[1734701577328,1.0050613,186.65,186.51,0.12549]
[1734701577505,41.67835031,186.65,186.51,0.3679908]
[1734701577698,40.67328901,186.61,186.5,40.67328901]
[1734701578099,40.67328901,186.63,186.5,41.04179479]
[1734701578298,40.67328901,186.65,186.51,0.12549]
[1734701578596,40.67328901,186.61,186.5,41.04179479]
[1734701578796,40.67328901,186.57,186.48,40.67328901]
[1734701579202,1.00509969,186.56,186.48,40.67328901]
[1734701579717,40.67328901,186.55,186.46,40.67328901]
[1734701580015,1.00521088,186.54,186.44,40.67328901]
[1734701580217,40.67328901,186.53,186.44,40.67328901]
[1734701580423,40.67328901,186.51,186.4,40.67328901]
[1734701580722,0.974525,186.52,186.48,40.67328901]
[1734701581231,41.67851091,186.51,186.4,40.67328901]
[1734701581401,40.67328901,186.47,186.38,40.67328901]
[1734701581592,40.67328901,186.51,186.4,40.67328901]
[1734701581791,1.00553492,186.5,186.42,40.67328901]
[1734701582029,1.98007966,186.52,186.42,40.67328901]
[1734701582197,40.67328901,186.49,186.38,40.67328901]
[1734701582500,40.67328901,186.47,186.38,40.67328901]
[1734701582698,40.67328901,186.43,186.32,40.67328901]
[1734701582930,40.67328901,186.35,186.24,0.37088075]
[1734701583107,40.67328901,186.33,186.23,47.27018901]
[1734701583309,1.00658106,186.32,186.23,47.27018901]
[1734701583499,1.00650202,186.32,186.23,40.67328901]
[1734701583825,1.00650202,186.32,186.25,40.67328901]
[1734701584024,1.00632476,186.34,186.25,40.67328901]
[1734701584362,40.67328901,186.39,186.29,40.67328901]
[1734701584554,40.67328901,186.45,186.35,40.67328901]
[1734701584827,40.67328901,186.49,186.39,40.67328901]
[1734701585006,40.67328901,186.47,186.37,40.67328901]
[1734701585194,1.00579408,186.46,186.37,40.67328901]
[1734701585396,1.00579408,186.46,186.38,20.0]
[1734701585601,40.67328901,186.48,186.37,40.67328901]
[1734701585832,1.00583004,186.47,186.37,40.67328901]
[1734701586003,40.67328901,186.46,186.35,40.67328901]
[1734701586203,40.67328901,186.46,186.31,0.37002789]
[1734701586204,40.67328901,186.42,186.31,41.0433169]
[1734701586514,40.67328901,186.37,186.27,40.67328901]
[1734701586717,40.67328901,186.41,186.31,40.67328901]
[1734701587008,1.006279,186.47,186.36,40.67328901]
[1734701587009,40.67328901,186.45,186.36,40.67328901]
[1734701587198,40.67328901,186.45,186.3,40.67328901]
[1734701587199,0.974525,186.52,186.42,40.67328901]
[1734701587396,0.974525,186.52,186.46,40.67328901]
[1734701587600,0.974525,186.52,186.44,40.67328901]
[1734701587825,0.974525,186.52,186.46,40.67328901]
[1734701588013,0.974525,186.52,186.42,20.0]
[1734701588014,40.67328901,186.5,186.42,20.0]
[1734701588215,1.00559525,186.49,186.42,40.67328901]
[1734701588418,40.67328901,186.5,186.4,40.67328901]
[1734701588606,1.00562297,186.49,186.4,40.67328901]
[1734701588809,40.67328901,186.48,186.38,40.67328901]
[1734701589132,1.00569967,186.47,186.4,40.67328901]
[1734701589338,40.67328901,186.5,186.4,40.67328901]
[1734701589505,41.64781401,186.52,186.42,40.67328901]
[1734701589709,0.974525,186.52,186.48,40.67328901]
[1734701589930,0.974525,186.52,186.5,40.67328901]
[1734701590131,0.974525,186.52,186.51,0.36868672]
[1734701590503,40.67328901,186.67,186.53,20.0]
[1734701590819,40.67328901,186.69,186.58,40.67328901]
[1734701591020,40.67328901,186.67,186.58,40.67328901]
[1734701591200,1.00445397,186.68,186.57,20.0]
[1734701591201,40.67328901,186.69,186.6,40.67328901]
[1734701591405,40.67328901,186.71,186.61,40.67328901]
[1734701591607,40.67328901,186.71,186.62,20.0]
[1734701591809,40.67328901,186.77,186.68,20.0]
[1734701592023,40.67328901,186.79,186.69,40.67328901]
[1734701592330,0.63679633,186.78,186.69,40.67328901]
[1734701592630,40.67328901,186.81,186.74,20.0]
[1734701592802,1.209173,186.85,186.77,40.67328901]
[1734701593000,1.209173,186.85,186.78,0.80287263]
[1734701593225,1.209173,186.85,186.83,40.67328901]
[1734701593436,40.67328901,186.99,186.86,20.0]
[1734701593640,40.67328901,186.99,186.9,40.67328901]
[1734701593930,40.67328901,187.01,186.91,0.80223554]
[1734701594122,40.67328901,186.94,186.85,0.80214134]
[1734701594330,40.67328901,186.96,186.87,40.67328901]
[1734701594530,40.67328901,186.98,186.87,40.67328901]
[1734701594731,40.67328901,186.94,186.83,40.67328901]
[1734701594932,40.67328901,186.96,186.85,40.67328901]
[1734701595138,40.67328901,187.0,186.91,40.67328901]
[1734701595441,40.67328901,187.06,186.95,40.67328901]
[1734701595636,40.67328901,187.08,186.99,40.67328901]
[1734701595841,40.67328901,187.06,186.98,0.12549]
[1734701596043,40.67328901,187.02,186.93,40.67328901]
[1734701596223,40.67328901,186.98,186.89,40.67328901]
[1734701596424,40.67328901,187.0,186.91,40.67328901]
[1734701596743,40.67328901,187.02,186.91,40.67328901]
[1734701596953,40.67328901,187.0,186.94,20.0]
[1734701597240,40.67328901,186.98,186.87,40.67328901]
[1734701597419,40.67328901,186.96,186.87,41.47570456]
[1734701597737,0.63679633,187.01,186.91,40.67328901]
[1734701597738,40.67328901,187.0,186.91,40.67328901]
[1734701597931,40.67328901,187.0,186.89,40.67328901]
[1734701598129,0.63679633,186.99,186.91,40.67328901]
[1734701598335,40.67328901,187.02,186.93,40.67328901]
[1734701598536,40.67328901,187.04,186.96,0.12549]
[1734701598740,40.67328901,187.06,186.96,0.12549]
[1734701598973,0.63679633,187.1,186.96,0.12549]
[1734701599116,0.63679633,187.16,187.06,0.12549]
[1734701599316,0.63679633,187.16,187.07,40.67328901]
[1734701599724,0.63679633,187.16,187.08,0.12549]
[1734701599930,41.88246201,187.17,187.08,0.12549]
[1734701600446,40.67328901,187.15,187.03,41.47486084]
[1734701600652,40.67328901,187.15,187.05,40.67328901]
[1734701600653,0.63679633,187.14,187.05,40.67328901]
[1734701600855,40.67328901,187.15,187.05,41.47499748]
[1734701601055,1.209173,187.17,187.05,20.80170847]
[1734701601354,1.209173,187.17,187.12,40.67328901]
[1734701601721,1.209173,187.17,187.14,40.67328901]
[1734701602317,1.209173,187.17,187.08,40.67328901]
[1734701602619,1.209173,187.17,186.93,40.67328901]
[1734701602620,0.63679633,187.16,187.09,40.67328901]
[1734701602821,1.209173,187.17,187.11,40.67328901]
[1734701603035,1.209173,187.17,187.11,41.47470262]
[1734701603237,1.209173,187.17,187.11,40.67328901]
[1734701603451,40.67328901,187.12,187.04,0.80134795]
[1734701603660,40.67328901,187.1,187.0,40.67328901]
[1734701603844,40.67328901,187.14,187.02,40.67328901]
[1734701604152,1.84596933,187.17,187.08,40.67328901]
[1734701604354,0.63679633,187.16,187.06,40.67328901]
[1734701604659,41.31008534,187.16,187.06,40.67328901]
[1734701604829,1.209173,187.17,187.12,40.67328901]
[1734701605030,1.209173,187.17,187.16,40.67328901]
[1734701606841,40.67328901,187.27,187.16,40.67328901]
[1734701607057,1.0340232,187.17,187.16,60.67328901]
[1734701607841,1.0235302,187.34,187.13,0.80109831]
[1734701607842,1.0235302,187.34,187.14,6.0371]
[1734701608055,1.0235302,187.34,187.3,40.67328901]
[1734701608235,1.0235302,187.34,187.21,0.8007242]
[1734701608431,1.0235302,187.34,187.26,40.67328901]
[1734701608768,0.63679633,187.33,187.24,40.67328901]
[1734701608937,40.67328901,187.31,187.22,40.67328901]
[1734701609266,1.0235302,187.34,187.02,40.67328901]
[1734701609267,40.67328901,187.29,187.2,40.67328901]
[1734701609469,0.63679633,187.28,187.2,40.67328901]
[1734701609644,0.63679633,187.28,187.12,0.80106803]
[1734701609853,40.67328901,187.33,187.23,40.67328901]
[1734701610161,0.63679633,187.32,187.23,40.67328901]
[1734701610339,40.67328901,187.29,187.19,40.67328901]
[1734701610540,0.63679633,187.28,187.19,40.67328901]
[1734701610954,0.63679633,187.28,187.02,40.67328901]
[1734701610955,40.67328901,187.25,187.13,40.67328901]
[1734701611266,40.67328901,187.29,187.13,40.67328901]
[1734701611267,35.67328901,187.22,187.13,40.67328901]
[1734701611440,0.63679633,187.28,187.19,40.67328901]
[1734701611639,40.67328901,187.31,187.21,40.67328901]
[1734701611869,40.67328901,187.29,187.19,40.67328901]
[1734701612184,40.67328901,187.23,187.13,40.67328901]
[1734701612470,40.67328901,187.27,187.15,40.67328901]
[1734701612676,0.63679633,187.26,187.19,40.67328901]
[1734701612968,40.67328901,187.24,187.13,40.67328901]
[1734701613178,0.63679633,187.23,187.12,40.67328901]
[1734701613345,40.67328901,187.22,187.12,40.67328901]
[1734701613682,40.67328901,187.13,186.91,6.4866]
[1734701613977,40.67328901,187.14,187.03,40.67328901]
[1734701614282,0.63679633,187.19,187.09,40.67328901]
[1734701614562,0.63679633,187.19,187.07,40.67328901]
[1734701614563,40.67328901,187.16,187.07,40.67328901]
[1734701614978,0.63679633,187.15,187.05,40.67328901]
[1734701615277,40.67328901,187.12,187.01,40.67328901]
[1734701615446,40.0533,187.25,186.93,40.67328901]
[1734701615447,0.63679633,187.19,187.03,40.67328901]
[1734701615640,40.67328901,187.12,187.01,40.67328901]
[1734701615841,0.63679633,187.11,187.01,40.67328901]
[1734701616039,0.63679633,187.19,187.03,40.67328901]
[1734701616364,40.67328901,187.16,187.05,40.67328901]
[1734701616572,0.63679633,187.15,187.07,40.67328901]
[1734701616871,40.67328901,187.12,187.01,40.67328901]
[1734701617072,40.67328901,187.1,186.99,40.67328901]
[1734701617270,0.63679633,187.19,187.05,40.67328901]
[1734701617571,0.63679633,187.19,187.01,0.80193361]
[1734701617572,40.67328901,187.12,187.03,40.67328901]
[1734701617756,40.67328901,187.08,186.99,40.67328901]
[1734701617961,40.67328901,187.04,186.93,40.67328901]
[1734701618265,0.63679633,187.03,186.95,40.67328901]
[1734701618473,40.67328901,187.06,186.95,40.67328901]
[1734701618678,40.67328901,187.08,186.97,40.67328901]
[1734701618983,40.67328901,187.14,187.04,40.67328901]
[1734701619157,40.67328901,187.16,187.06,40.67328901]
[1734701619361,40.67328901,187.18,187.08,40.67328901]
[1734701619556,40.67328901,187.14,187.03,40.67328901]
[1734701619765,40.67328901,187.1,187.01,40.67328901]
[1734701620071,40.67328901,187.16,187.05,40.67328901]
[1734701620251,0.63679633,187.15,187.05,40.67328901]
[1734701620455,40.67328901,187.12,187.03,40.67328901]
[1734701620777,0.63679633,187.11,187.01,40.67328901]
[1734701620955,40.67328901,187.04,186.95,40.67328901]
[1734701621148,40.67328901,187.0,186.94,21.420911]
[1734701621470,40.67328901,187.02,186.92,40.67328901]
[1734701621669,40.67328901,187.06,186.95,40.67328901]
[1734701621920,40.67328901,187.12,187.03,40.67328901]
[1734701622080,40.67328901,187.14,187.05,40.67328901]
[1734701622253,40.67328901,187.14,187.03,40.67328901]
[1734701622448,40.67328901,187.16,187.05,40.67328901]
[1734701622697,40.67328901,187.14,187.06,20.0]
[1734701622971,40.67328901,187.2,187.01,40.67328901]
[1734701622972,40.67328901,187.1,187.01,40.67328901]
[1734701623176,40.67328901,187.08,186.98,40.67328901]
[1734701623377,40.67328901,187.08,186.94,0.80184986]
[1734701623378,40.67328901,187.04,186.94,40.67328901]
[1734701623549,0.63679633,187.03,186.94,40.67328901]
[1734701623751,0.63679633,187.03,186.92,21.424088]
[1734701623752,40.67328901,187.02,186.92,62.09737701]
[1734701623967,40.67328901,186.96,186.85,40.67328901]
[1734701624490,0.63679633,186.95,186.88,21.432794]
[1734701624652,0.63679633,186.95,186.85,40.67328901]
[1734701624653,40.67328901,186.99,186.87,40.67328901]
[1734701624983,40.67328901,186.95,186.86,21.428985]
[1734701625154,40.67328901,186.89,186.77,40.67328901]
[1734701625348,40.67328901,186.87,186.75,40.67328901]
[1734701625559,40.67328901,186.85,186.76,21.444279]
[1734701625854,40.67328901,186.87,186.77,40.67328901]
[1734701626056,40.67328901,186.89,186.77,40.67328901]
[1734701626270,40.67328901,186.85,186.73,40.67328901]
[1734701626473,40.67328901,186.93,186.77,40.67328901]
[1734701626474,40.67328901,186.89,186.77,40.67328901]
[1734701626780,40.67328901,186.87,186.78,21.442414]
[1734701627091,40.67328901,187.02,186.72,0.80299628]
[1734701627092,40.67328901,186.89,186.79,40.67328901]
[1734701627382,40.67328901,186.91,186.81,40.67328901]
[1734701627577,40.67328901,187.02,186.81,40.67328901]
[1734701627578,0.63679633,186.9,186.81,40.67328901]
[1734701627763,40.67328901,186.93,186.83,40.67328901]
[1734701628076,40.67328901,186.93,186.76,22.24445184]
[1734701628077,40.67328901,186.95,186.85,40.67328901]
[1734701628281,40.67328901,186.91,186.81,40.67328901]
[1734701628455,40.67328901,186.93,186.84,20.0]
[1734701628658,40.67328901,186.95,186.86,20.0]
[1734701628961,40.67328901,186.93,186.81,40.67328901]
[1734701629161,40.67328901,186.91,186.81,40.67328901]
[1734701629368,40.67328901,186.95,186.83,40.67328901]
[1734701629570,40.67328901,186.93,186.83,40.67328901]
[1734701629760,40.67328901,186.97,186.88,20.0]
[1734701630078,40.67328901,186.91,186.81,40.67328901]
[1734701630288,40.67328901,186.89,186.79,40.67328901]
[1734701630658,0.63679633,186.88,186.8,0.12549]
[1734701630974,0.63679633,186.9,186.79,40.67328901]
[1734701631171,0.63679633,186.9,186.81,40.67328901]
[1734701631381,40.67328901,186.93,186.81,40.67328901]
[1734701631571,0.63679633,186.92,186.81,40.67328901]
[1734701631909,40.67328901,186.85,186.76,21.441568]
[1734701632196,40.67328901,186.93,186.71,46.87538901]
[1734701632197,40.67328901,186.81,186.71,46.87538901]
[1734701632485,0.63679633,186.8,186.72,21.452063]
[1734701632793,0.63679633,186.82,186.67,4.49515729]
[1734701633100,40.67328901,186.98,186.82,0.12549]
[1734701633311,40.67328901,187.0,186.89,40.67328901]
[1734701633805,40.67328901,187.02,186.91,40.67328901]
[1734701634004,40.67328901,187.06,186.96,20.0]
[1734701634189,40.67328901,187.06,186.95,40.67328901]
[1734701634190,40.67328901,187.04,186.95,40.67328901]
[1734701634390,40.67328901,187.06,186.97,40.67328901]
[1734701634590,0.63679633,187.05,186.95,40.67328901]
[1734701634812,40.67328901,187.06,186.95,40.67328901]
[1734701634977,40.67328901,187.09,186.99,40.67328901]
[1734701635176,40.67328901,187.11,187.01,40.67328901]
[1734701635380,40.67328901,187.09,186.97,40.79877901]
[1734701635689,40.67328901,187.09,186.99,40.67328901]
[1734701635903,40.67328901,187.11,187.02,20.0]
[1734701636615,0.63679633,187.1,186.99,40.67328901]
[1734701636778,40.67328901,187.13,187.03,40.67328901]
[1734701636985,40.67328901,187.17,187.07,40.67328901]
[1734701637190,40.67328901,187.26,187.15,40.67328901]
[1734701637494,0.63679633,187.28,187.17,40.67328901]
[1734701637495,40.67328901,187.28,187.17,40.67328901]
[1734701637681,0.63679633,187.27,187.17,40.67328901]
[1734701637885,40.67328901,187.22,187.11,40.67328901]
[1734701638087,0.63679633,187.21,187.11,40.67328901]
[1734701638307,40.67328901,187.23,187.11,40.67328901]
[1734701638514,40.67328901,187.29,187.09,40.67328901]
[1734701638515,40.67328901,187.2,187.09,40.67328901]
[1734701638813,40.67328901,187.14,187.05,40.67328901]
[1734701638981,40.67328901,187.12,187.03,40.67328901]
[1734701639178,40.67328901,187.14,187.05,40.67328901]
[1734701639512,0.63679633,187.19,187.05,40.67328901]
[1734701639691,40.67328901,187.14,187.03,40.67328901]
[1734701639895,41.31008534,187.13,187.01,40.67328901]
[1734701640202,40.67328901,187.09,186.99,40.67328901]
[1734701640426,40.67328901,187.11,186.99,40.67328901]
[1734701640587,40.67328901,187.15,187.03,40.67328901]
[1734701640810,40.67328901,187.11,187.01,40.67328901]
[1734701641026,0.63679633,187.1,187.01,40.67328901]
[1734701641320,40.67328901,187.05,186.95,40.67328901]
[1734701641522,40.67328901,186.97,186.87,40.67328901]
[1734701641721,40.67328901,186.95,186.85,40.67328901]
[1734701641929,40.67328901,186.89,186.79,41.47572967]
[1734701642241,40.67328901,186.93,186.81,40.67328901]
[1734701642425,40.67328901,186.93,186.77,3.6395]
[1734701642426,0.63679633,186.92,186.85,40.67328901]
[1734701642625,40.67328901,186.93,186.83,40.67328901]
[1734701642846,0.63679633,186.98,186.87,40.67328901]
[1734701643032,20.0,187.1,186.89,40.67328901]
[1734701643033,40.67328901,186.99,186.89,40.67328901]
[1734701643342,40.67328901,187.07,186.95,40.67328901]
[1734701643652,269.4650812,187.25,186.99,40.67328901]
[1734701643653,40.67328901,187.11,186.99,40.67328901]
[1734701643952,40.67328901,187.05,186.96,0.80210676]
[1734701644113,0.63679633,187.04,186.98,40.67328901]
[1734701644479,0.63679633,187.08,187.0,40.67328901]
[1734701644946,0.63679633,187.08,186.98,40.67328901]
[1734701645117,0.63679633,187.08,186.94,0.80214741]
[1734701645118,40.67328901,187.05,186.94,40.67328901]
[1734701645445,40.67328901,187.03,186.92,40.67328901]
[1734701645640,0.63679633,187.02,186.94,40.67328901]
[1734701645842,0.63679633,187.02,186.92,40.67328901]
[1734701646020,0.63679633,187.02,186.85,0.80222876]
[1734701646021,0.63679633,187.02,186.94,40.67328901]
[1734701646342,40.67328901,187.17,187.01,40.67328901]
[1734701646537,40.67328901,187.15,187.05,40.67328901]
[1734701646738,40.67328901,187.13,187.01,40.67328901]
[1734701647042,40.67328901,187.05,186.95,40.67328901]
[1734701647246,40.67328901,187.02,186.91,40.67328901]
[1734701647549,40.67328901,187.09,186.98,40.67328901]
[1734701647717,40.67328901,187.16,187.05,40.67328901]
[1734701648038,40.67328901,187.14,187.03,40.67328901]
[1734701648259,40.67328901,187.12,187.01,40.67328901]
[1734701648466,40.67328901,187.1,187.01,40.67328901]
[1734701648647,24.59837706,187.27,187.01,40.67328901]
[1734701648648,0.63679633,187.09,187.01,40.67328901]
[1734701648834,6.1376,187.27,186.94,0.80172415]
[1734701648835,40.67328901,187.12,187.03,40.67328901]
[1734701649042,40.67328901,187.16,187.05,40.67328901]
[1734701649252,0.63679633,187.18,187.07,40.67328901]
[1734701649253,41.31008534,187.18,187.07,40.67328901]
[1734701649557,0.63679633,187.17,187.09,40.67328901]
[1734701649736,0.63679633,187.17,187.08,21.412591]
[1734701649941,0.63679633,187.17,187.09,40.67328901]
[1734701650140,40.67328901,187.24,187.13,40.67328901]
[1734701650322,40.67328901,187.28,187.17,40.67328901]
[1734701650522,40.67328901,187.28,187.11,40.67328901]
[1734701650523,0.63679633,187.28,187.19,40.67328901]
[1734701650722,0.63679633,187.28,187.25,40.67328901]
[1734701650947,0.63679633,187.33,187.25,40.67328901]
[1734701651157,1.0235302,187.34,187.22,3.4903]
[1734701651158,1.66032653,187.34,187.3,20.0]
[1734701651364,1.0235302,187.34,187.33,20.0]
[1734701651575,1.0235302,187.34,187.33,40.67328901]
[1734701652748,1.0235302,187.34,187.33,41.47374963]
[1734701652931,1.0235302,187.34,187.33,40.67328901]
[1734701653130,1.0235302,187.34,187.31,40.67328901]
[1734701653451,1.0235302,187.34,187.27,40.67328901]
[1734701653656,40.67328901,187.28,187.17,40.67328901]
[1734701653956,1.0235302,187.34,187.15,40.67328901]
[1734701653957,0.63679633,187.27,187.15,40.67328901]
[1734701654132,0.63679633,187.33,187.23,40.67328901]
[1734701654459,40.67328901,187.32,187.23,40.67328901]
[1734701654663,40.67328901,187.3,187.19,40.67328901]
[1734701654840,40.67328901,187.32,187.23,40.67328901]
[1734701655043,0.63679633,187.31,187.23,40.67328901]
[1734701655238,0.63679633,187.33,187.23,40.67328901]
[1734701655559,40.67328901,187.32,187.23,40.67328901]
[1734701655763,0.63679633,187.31,187.2,40.67328901]
[1734701655970,0.63679633,187.48,187.33,10.0093]
[1734701656271,0.63679633,187.56,187.4,40.67328901]
[1734701656480,1.0235302,187.61,187.47,40.67328901]
[1734701656642,40.67328901,187.59,187.49,40.67328901]
[1734701656841,40.67328901,187.55,187.45,40.67328901]
[1734701657061,15.58,187.5,187.45,40.67328901]
[1734701657279,15.58,187.5,187.38,40.67328901]
[1734701657280,0.63679633,187.49,187.43,40.67328901]
[1734701657578,15.58,187.5,187.41,40.67328901]
[1734701657784,40.67328901,187.46,187.35,40.67328901]
[1734701657948,40.67328901,187.42,187.34,0.80019579]
[1734701658147,0.63679633,187.41,187.31,40.67328901]
[1734701658446,41.31008534,187.46,187.35,40.67328901]
[1734701658872,0.63679633,187.46,187.37,40.67328901]
[1734701659047,0.63679633,187.49,187.3,0.80026626]
[1734701659363,41.31008534,187.49,187.39,40.67328901]
[1734701659566,41.31008534,187.49,187.37,40.67328901]
[1734701659756,40.67328901,187.43,187.31,40.67328901]
[1734701659938,0.63679633,187.42,187.33,40.67328901]
[1734701660143,0.63679633,187.49,187.4,40.67328901]
[1734701660343,15.58,187.5,187.29,40.67328901]
[1734701660344,15.58,187.5,187.42,40.67328901]
[1734701660662,40.67328901,187.45,187.36,40.67328901]
[1734701660983,40.67328901,187.43,187.32,40.67328901]
[1734701661160,0.63679633,187.42,187.36,40.67328901]
[1734701661478,40.67328901,187.45,187.34,40.67328901]
[1734701661677,0.63679633,187.44,187.37,40.67328901]
[1734701661983,40.67328901,187.44,187.33,40.67328901]
[1734701662282,40.67328901,187.38,187.26,40.67328901]
[1734701662450,40.67328901,187.36,187.26,40.67328901]
[1734701662767,40.67328901,187.34,187.24,40.67328901]
[1734701662978,0.63679633,187.33,187.24,40.67328901]
[1734701663163,40.67328901,187.32,187.2,40.67328901]
[1734701663363,40.67328901,187.3,187.12,7.34225237]
[1734701663565,40.67328901,187.21,187.12,7.34225237]
[1734701663770,40.67328901,187.17,187.09,3.7403]
[1734701663970,40.67328901,187.19,187.09,44.41358901]
[1734701664163,40.67328901,187.15,187.08,21.412591]
[1734701664475,40.67328901,187.2,187.02,6.5413]
[1734701664476,40.67328901,187.1,187.02,6.5413]
[1734701664786,40.67328901,187.1,186.98,3.5145]
[1734701664787,0.63679633,187.19,187.04,62.08868801]
[1734701665091,40.67328901,187.16,187.06,40.67328901]
[1734701665272,40.67328901,187.22,187.12,40.67328901]
[1734701665474,40.67328901,187.26,187.16,40.67328901]
[1734701665685,40.67328901,187.24,187.14,40.67328901]
[1734701665887,40.67328901,187.22,187.14,40.67328901]
[1734701666083,0.63679633,187.23,187.05,0.80116135]
[1734701666084,40.67328901,187.2,187.12,40.67328901]
[1734701666391,40.67328901,187.22,187.12,40.67328901]
[1734701666588,40.67328901,187.2,187.12,40.67328901]
[1734701666802,0.63679633,187.19,187.1,40.67328901]
[1734701666959,40.67328901,187.18,187.09,40.67328901]
[1734701667280,0.63679633,187.17,187.07,40.67328901]
[1734701667603,40.67328901,187.29,187.04,21.415399]
[1734701667604,40.67328901,187.2,187.09,40.67328901]
[1734701667896,40.67328901,187.2,187.11,40.67328901]
[1734701668100,0.63679633,187.19,187.11,40.67328901]
[1734701668265,40.67328901,187.2,187.11,40.67328901]
[1734701668464,40.67328901,187.18,187.09,40.67328901]
[1734701668675,40.67328901,187.22,187.13,40.67328901]
[1734701668875,40.67328901,187.29,187.13,40.67328901]
[1734701668876,0.63679633,187.21,187.13,40.67328901]
[1734701669090,0.63679633,187.23,187.15,40.67328901]
[1734701669287,13.3434,187.36,187.05,0.80154008]
[1734701669288,40.67328901,187.26,187.17,40.67328901]
[1734701669592,40.67328901,187.28,187.19,40.67328901]
[1734701669757,0.63679633,187.37,187.12,0.92663555]
[1734701669758,40.67328901,187.3,187.21,40.67328901]
[1734701669956,40.67328901,187.32,187.24,20.0]
[1734701670157,40.67328901,187.34,187.25,40.67328901]
[1734701670392,40.67328901,187.32,187.24,20.0]
[1734701670687,40.67328901,187.26,187.15,40.67328901]
[1734701670896,40.67328901,187.24,187.15,40.67328901]
[1734701671197,40.67328901,187.26,187.17,40.67328901]
[1734701671568,40.67328901,187.24,187.15,40.67328901]